fUSD/lending_fUSD_20240513
["ID","MTS","AMOUNT","RATE_DAILY","PERIOD"]
[326951638,1715640656704,-500.0,0.00012994,2]
[326951639,1715640656714,-500.0,0.00012994,2]
[326951640,1715640656724,-860.424944,0.00012994,2]
[326951641,1715640656733,-500.0,0.00012994,2]
[326951642,1715640656743,-500.0,0.00012994,2]
[326951643,1715640656753,-860.424944,0.00012994,2]
[326951644,1715640656762,-500.0,0.00012994,2]
[326951645,1715640656771,-500.0,0.00012994,2]
[326951646,1715640656781,-151.0,0.00012994,2]
[326951647,1715640656791,-500.0,0.00012994,2]
[326951648,1715640656801,-170.11802218,0.00012994,2]
[326951649,1715640656811,-151.0,0.00012994,2]
[326951650,1715640656820,-151.0,0.00012994,2]
[326951651,1715640656830,-151.0,0.00012994,2]
[326951652,1715640656840,-151.721786,0.00012994,2]
[326951653,1715640656849,-214.437112,0.00012994,2]
[326951654,1715640656860,-151.0,0.00012994,2]
[326951655,1715640656870,-151.0,0.00012994,2]
[326951656,1715640656880,-151.0,0.00012994,2]
[326951657,1715640656890,-151.0,0.00012994,2]
[326951658,1715640656899,-151.0,0.00012994,2]
[326951659,1715640656909,-289.581928,0.00012994,2]
[326951660,1715640656919,-151.0,0.00012994,2]
[326951661,1715640656929,-151.0,0.00012994,2]
[326951662,1715640656939,-501.87717682,0.00012995,2]
[326951663,1715640656949,-501.48024543,0.00012995,2]
[326951664,1715640656959,-502.9561655,0.00012995,2]
[326951665,1715640656969,-500.0,0.00012995,2]
[326951666,1715640656979,-513.69486637,0.00012995,2]
[326951667,1715640656989,-502.37688181,0.00012995,2]
[326951668,1715640656999,-378.82968607,0.00012995,2]
[326951669,1715640657009,-500.66263104,0.00012995,2]
[326951670,1715640657018,-347.341209,0.00012995,2]
[326951671,1715640657028,-500.0,0.00012995,2]
[326951672,1715640657038,-500.0,0.00012995,2]
[326951673,1715640657047,-500.0,0.00012995,2]
[326951674,1715640657058,-500.0,0.00012995,2]
[326951675,1715640657068,-500.0,0.00012995,2]
[326951676,1715640657078,-500.0,0.00012995,2]
[326951677,1715640657088,-500.0,0.00012995,2]
[326951678,1715640657098,-500.0,0.00012995,2]
[326951679,1715640657108,-500.0,0.00012995,2]
[326951680,1715640657118,-797.47,0.00012995,2]
[326951681,1715640657128,-500.0,0.00012995,2]
[326951682,1715640657137,-500.0,0.00012995,2]
[326951683,1715640657148,-860.424944,0.00012995,2]
[326951684,1715640657157,-500.0,0.00012995,2]
[326951685,1715640657166,-860.424944,0.00012995,2]
[326951686,1715640657176,-1063.34,0.00012995,2]
[326951687,1715640657186,-500.0,0.00012995,2]
[326951688,1715640657196,-318.03,0.00012995,2]
[326951689,1715640657205,-500.0,0.00012995,2]
[326951690,1715640657215,-524.54,0.00012995,2]
[326951691,1715640657226,-500.0,0.00012995,2]
[326951692,1715640657236,-500.0,0.00012995,2]
[326951693,1715640657246,-614.47,0.00012995,2]
[326951694,1715640657256,-654.56,0.00012995,2]
[326951695,1715640657266,-287.6,0.00012995,2]
[326951696,1715640657276,-500.0,0.00012995,2]
[326951697,1715640657286,-500.0,0.00012995,2]
[326951698,1715640657296,-500.0,0.00012995,2]
[326951699,1715640657306,-500.0,0.00012995,2]
[326951700,1715640657316,-500.0,0.00012995,2]
[326951701,1715640657327,-418.92,0.00012995,2]
[326951702,1715640657337,-500.0,0.00012995,2]
[326951703,1715640657347,-500.0,0.00012995,2]
[326951704,1715640657356,-500.0,0.00012996,2]
[326951705,1715640657366,-500.0,0.00012996,2]
[326951706,1715640657376,-432.19,0.00012996,2]
[326951707,1715640657385,-500.0,0.00012996,2]
[326951708,1715640657395,-500.0,0.00012996,2]
[326951709,1715640657404,-500.0,0.00012996,2]
[326951710,1715640657414,-500.0,0.00012996,2]
[326951711,1715640657424,-500.0,0.00012996,2]
[326951712,1715640657434,-500.0,0.00012996,2]
[326951713,1715640657443,-464.98,0.00012996,2]
[326951714,1715640657454,-225.83,0.00012996,2]
[326951715,1715640657464,-500.0,0.00012996,2]
[326951716,1715640657473,-403.78,0.00012996,2]
[326951717,1715640657483,-578.76,0.00012996,2]
[326951718,1715640657493,-500.0,0.00012996,2]
[326951719,1715640657502,-500.0,0.00012996,2]
[326951720,1715640657512,-500.0,0.00012996,2]
[326951721,1715640657521,-500.0,0.00012996,2]
[326951722,1715640657531,-500.0,0.00012996,2]
[326951723,1715640657540,-150.0,0.00012996,2]
[326951724,1715640657550,-500.0,0.00012996,2]
[326951725,1715640657559,-500.0,0.00012996,2]
[326951726,1715640657569,-551.56,0.00012996,2]
[326951727,1715640657578,-500.0,0.00012996,2]
[326951728,1715640657588,-353.23,0.00012996,2]
[326951729,1715640657597,-500.0,0.00012996,2]
[326951730,1715640657606,-500.0,0.00012996,2]
[326951731,1715640657615,-500.0,0.00012996,2]
[326951732,1715640657630,-518.85,0.00012996,2]
[326951733,1715640657639,-470.13,0.00012996,2]
[326951734,1715640657648,-226.22,0.00012996,2]
[326951735,1715640657658,-500.0,0.00012996,2]
[326951736,1715640657669,-560.92,0.00012996,2]
[326951737,1715640657678,-500.0,0.00012996,2]
[326951738,1715640657688,-500.0,0.00012996,2]
[326951739,1715640657698,-500.0,0.00012996,2]
[326951740,1715640657707,-315.95,0.00012996,2]
[326951741,1715640657718,-500.0,0.00012996,2]
[326951742,1715640657727,-184.85,0.00012996,2]
[326951743,1715640657737,-282.17,0.00012996,2]
[326951744,1715640657747,-272.21,0.00012996,2]
[326951745,1715640657757,-500.0,0.00012996,2]
[326951746,1715640657766,-327.97,0.00012996,2]
[326951747,1715640657776,-512.17,0.00012996,2]
[326951748,1715640657785,-500.0,0.00012996,2]
[326951749,1715640657795,-500.0,0.00012996,2]
[326951750,1715640657805,-394.63,0.00012996,2]
[326951751,1715640657815,-210.45,0.00012996,2]
[326951752,1715640657824,-500.0,0.00012996,2]
[326951753,1715640657834,-571.12,0.00012996,2]
[326951754,1715640657844,-478.87,0.00012996,2]
[326951755,1715640657853,-647.53,0.00012996,2]
[326951756,1715640657863,-351.68,0.00012996,2]
[326951757,1715640657873,-417.55,0.00012996,2]
[326951758,1715640657884,-612.82,0.00012996,2]
[326951759,1715640657893,-500.0,0.00012996,2]
[326951760,1715640657903,-151.0,0.00012996,2]
[326951761,1715640657912,-178.64,0.00012996,2]
[326951762,1715640657922,-500.0,0.00012996,2]
[326951763,1715640657931,-278.02,0.00012996,2]
[326951764,1715640658089,-278.2452,0.00012996,2]
[326951765,1715640658099,-662.44,0.00012996,2]
[326951766,1715640658108,-198.30736,0.00012996,2]
[326951767,1715640658117,-500.0,0.00012996,2]
[326951768,1715640658127,-508.20162333,0.00012996,2]
[326951769,1715640658136,-500.0,0.00012996,2]
[326951770,1715640658145,-151.0,0.00012996,2]
[326951771,1715640658155,-151.0,0.00012996,2]
[326951772,1715640658164,-500.0,0.00012996,2]
[326951773,1715640658173,-500.0,0.00012996,2]
[326951774,1715640658183,-500.0,0.00012996,2]
[326951775,1715640658192,-500.0,0.00012996,2]
[326951776,1715640658202,-500.0,0.00012996,2]
[326951777,1715640658211,-500.0,0.00012996,2]
[326951778,1715640658221,-500.0,0.00012996,2]
[326951779,1715640658231,-500.0,0.00012996,2]
[326951780,1715640658240,-500.0,0.00012996,2]
[326951781,1715640658250,-500.0,0.00012996,2]
[326951782,1715640658260,-500.0,0.00012996,2]
[326951783,1715640658269,-500.0,0.00012996,2]
[326951784,1715640658278,-500.0,0.00012996,2]
[326951785,1715640658288,-500.0,0.00012996,2]
[326951786,1715640658297,-500.0,0.00012996,2]
[326951787,1715640658306,-500.0,0.00012996,2]
[326951788,1715640658315,-500.0,0.00012996,2]
[326951789,1715640658325,-151.0,0.00012996,2]
[326951790,1715640658334,-500.0,0.00012996,2]
[326951791,1715640658343,-500.0,0.00012996,2]
[326951792,1715640658352,-151.0,0.00012996,2]
[326951793,1715640658361,-500.0,0.00012996,2]
[326951794,1715640658371,-500.0,0.00012996,2]
[326951795,1715640658380,-151.0,0.00012996,2]
[326951796,1715640658389,-500.0,0.00012996,2]
[326951797,1715640658398,-500.0,0.00012996,2]
[326951798,1715640658408,-500.0,0.00012996,2]
[326951799,1715640658418,-500.0,0.00012996,2]
[326951800,1715640658427,-500.0,0.00012996,2]
[326951801,1715640658436,-500.0,0.00012996,2]
[326951802,1715640658445,-500.0,0.00012996,2]
[326951803,1715640658455,-259.6454971,0.00012996,2]
[326951804,1715640658464,-500.0,0.00012996,2]
[326951805,1715640658474,-500.0,0.00012996,2]
[326951806,1715640658483,-500.0,0.00012996,2]
[326951807,1715640658493,-500.0,0.00012996,2]
[326951808,1715640658502,-500.0,0.00012996,2]
[326951809,1715640658512,-500.0,0.00012996,2]
[326951810,1715640658521,-500.0,0.00012996,2]
[326951811,1715640658530,-426.9,0.00012996,2]
[326951812,1715640658539,-500.0,0.00012996,2]
[326951813,1715640658549,-445.05,0.00012996,2]
[326951814,1715640658559,-500.0,0.00012996,2]
[326951815,1715640658568,-500.0,0.00012996,2]
[326951816,1715640658578,-500.0,0.00012996,2]
[326951817,1715640658587,-500.0,0.00012996,2]
[326951818,1715640658597,-500.0,0.00012996,2]
[326951819,1715640658606,-392.56,0.00012996,2]
[326951820,1715640658615,-500.0,0.00012996,2]
[326951821,1715640658629,-500.0,0.00012996,2]
[326951822,1715640658638,-176.901036,0.00012996,2]
[326951823,1715640658647,-500.0,0.00012996,2]
[326951824,1715640658657,-336.23,0.00012996,2]
[326951825,1715640658667,-500.0,0.00012996,2]
[326951826,1715640658676,-500.0,0.00012996,2]
[326951827,1715640658685,-500.0,0.00012996,2]
[326951828,1715640658695,-1089.39,0.00012996,2]
[326951829,1715640658706,-500.0,0.00012996,2]
[326951830,1715640658716,-500.0,0.00012996,2]
[326951831,1715640658725,-500.0,0.00012996,2]
[326951832,1715640658734,-500.0,0.00012996,2]
[326951833,1715640658743,-500.0,0.00012996,2]
[326951834,1715640658752,-500.0,0.00012996,2]
[326951835,1715640658762,-500.0,0.00012996,2]
[326951836,1715640658771,-151.0,0.00012996,2]
[326951837,1715640658781,-500.0,0.00012996,2]
[326951838,1715640658791,-1195.64,0.00012996,2]
[326951839,1715640658800,-210.81,0.00012996,2]
[326951840,1715640658809,-500.0,0.00012996,2]
[326951841,1715640658819,-585.28,0.00012996,2]
[326951842,1715640658828,-500.0,0.00012996,2]
[326951843,1715640658837,-151.0,0.00012996,2]
[326951844,1715640658848,-500.0,0.00012996,2]
[326951845,1715640658857,-500.0,0.00012996,2]
[326951846,1715640658866,-500.0,0.00012996,2]
[326951847,1715640658875,-583.33,0.00012996,2]
[326951848,1715640658885,-565.49,0.00012996,2]
[326951849,1715640658895,-202.47,0.00012996,2]
[326951850,1715640658904,-219.4734453,0.00012996,2]
[326951851,1715640658914,-162.26289943,0.00012997,2]
[326951852,1715640658923,-2218.46885929,0.00012997,2]
[326951853,1715640658933,-363.81807592,0.00012997,2]
[326951854,1715640658943,-2180.17335597,0.00012997,2]
[326951855,1715640658952,-155.0,0.00012997,2]
[326951856,1715640658962,-155.54270939,0.00012997,2]
[326951857,1715640658971,-1066.94921335,0.00012997,2]
[326951858,1715640658980,-655.82645492,0.00012997,2]
[326951859,1715640658989,-537.88108423,0.00012997,2]
[326951860,1715640659000,-152.876776,0.00012997,2]
[326951861,1715640659009,-151.0,0.00012997,2]
[326951862,1715640659019,-151.0,0.00012997,2]
[326951863,1715640659028,-500.0,0.00012997,2]
[326951864,1715640659038,-500.0,0.00012997,2]
[326951865,1715640659048,-500.0,0.00012997,2]
[326951866,1715640659057,-500.0,0.00012997,2]
[326951867,1715640659066,-500.0,0.00012997,2]
[326951868,1715640659076,-461.31,0.00012997,2]
[326951869,1715640659086,-719.93,0.00012997,2]
[326951870,1715640659095,-500.0,0.00012997,2]
[326951871,1715640659105,-500.0,0.00012997,2]
[326951872,1715640659115,-500.0,0.00012997,2]
[326951873,1715640659124,-500.0,0.00012997,2]
[326951874,1715640659134,-500.0,0.00012997,2]
[326951875,1715640659143,-500.0,0.00012997,2]
[326951876,1715640659153,-500.0,0.00012997,2]
[326951877,1715640659162,-500.0,0.00012997,2]
[326951878,1715640659171,-500.0,0.00012997,2]
[326951879,1715640659181,-500.0,0.00012997,2]
[326951880,1715640659190,-500.0,0.00012997,2]
[326951881,1715640659199,-500.0,0.00012997,2]
[326951882,1715640659208,-500.0,0.00012997,2]
[326951883,1715640659219,-292.66,0.00012997,2]
[326951884,1715640659228,-500.0,0.00012997,2]
[326951885,1715640659237,-500.0,0.00012997,2]
[326951886,1715640659247,-500.0,0.00012997,2]
[326951887,1715640659256,-500.0,0.00012997,2]
[326951888,1715640659265,-500.0,0.00012997,2]
[326951889,1715640659275,-500.0,0.00012997,2]
[326951890,1715640659284,-500.0,0.00012997,2]
[326951891,1715640659294,-580.73,0.00012997,2]
[326951892,1715640659303,-500.0,0.00012997,2]
[326951893,1715640659313,-580.73,0.00012997,2]
[326951894,1715640659322,-500.0,0.00012997,2]
[326951895,1715640659332,-500.0,0.00012997,2]
[326951896,1715640659342,-500.0,0.00012997,2]
[326951897,1715640659352,-500.0,0.00012997,2]
[326951898,1715640659361,-500.0,0.00012997,2]
[326951899,1715640659371,-500.0,0.00012997,2]
[326951900,1715640659380,-797.47,0.00012997,2]
[326951901,1715640659390,-2287.91,0.00012997,2]
[326951902,1715640659399,-2287.91,0.00012997,2]
[326951903,1715640659409,-500.0,0.00012997,2]
[326951904,1715640659419,-391.39,0.00012997,2]
[326951905,1715640659428,-500.0,0.00012997,2]
[326951906,1715640659438,-500.0,0.00012997,2]
[326951907,1715640659447,-500.0,0.00012997,2]
[326951908,1715640659457,-500.0,0.00012997,2]
[326951909,1715640659466,-500.0,0.00012997,2]
[326951910,1715640659476,-500.0,0.00012997,2]
[326951911,1715640659485,-500.0,0.00012997,2]
[326951912,1715640659494,-500.0,0.00012997,2]
[326951913,1715640659503,-310.69,0.00012997,2]
[326951914,1715640659512,-500.0,0.00012997,2]
[326951915,1715640659522,-500.0,0.00012997,2]
[326951916,1715640659532,-500.0,0.00012997,2]
[326951917,1715640659541,-500.0,0.00012997,2]
[326951918,1715640659551,-527.84,0.00012997,2]
[326951919,1715640659560,-527.84,0.00012997,2]
[326951920,1715640659570,-500.0,0.00012997,2]
[326951921,1715640659579,-500.0,0.00012997,2]
[326951922,1715640659589,-1063.34,0.00012997,2]
[326951923,1715640659598,-500.0,0.00012997,2]
[326951924,1715640659608,-500.0,0.00012997,2]
[326951925,1715640659617,-500.0,0.00012997,2]
[326951926,1715640659632,-500.0,0.00012997,2]
[326951927,1715640659641,-84.34506366,0.00012997,2]
[326951928,1715640659936,-415.65493634,0.00012997,2]
[326951929,1715640659945,-500.0,0.00012997,2]
[326951930,1715640659955,-500.0,0.00012997,2]
[326951931,1715640659965,-500.0,0.00012997,2]
[326951932,1715640659974,-500.0,0.00012997,2]
[326951933,1715640659983,-500.0,0.00012997,2]
[326951934,1715640659992,-500.0,0.00012997,2]
[326951935,1715640660003,-500.0,0.00012997,2]
[326951936,1715640660012,-500.0,0.00012997,2]
[326951937,1715640660021,-500.0,0.00012997,2]
[326951938,1715640660030,-500.0,0.00012997,2]
[326951939,1715640660039,-500.0,0.00012997,2]
[326951940,1715640660049,-253.74,0.00012997,2]
[326951941,1715640660058,-500.0,0.00012997,2]
[326951942,1715640660068,-500.0,0.00012997,2]
[326951943,1715640660077,-500.0,0.00012997,2]
[326951944,1715640660087,-500.0,0.00012997,2]
[326951945,1715640660096,-500.0,0.00012997,2]
[326951946,1715640660105,-500.0,0.00012997,2]
[326951947,1715640660115,-500.0,0.00012997,2]
[326951948,1715640660124,-500.0,0.00012997,2]
[326951949,1715640660133,-500.0,0.00012997,2]
[326951950,1715640660142,-500.0,0.00012997,2]
[326951951,1715640660151,-500.0,0.00012997,2]
[326951952,1715640660160,-506.39,0.00012997,2]
[326951953,1715640660169,-506.39,0.00012997,2]
[326951954,1715640660178,-500.0,0.00012997,2]
[326951955,1715640660188,-598.41,0.00012997,2]
[326951956,1715640660197,-500.0,0.00012997,2]
[326951957,1715640660207,-500.0,0.00012997,2]
[326951958,1715640660216,-500.0,0.00012997,2]
[326951959,1715640660225,-340.5,0.00012997,2]
[326951960,1715640660234,-500.0,0.00012997,2]
[326951961,1715640660243,-500.0,0.00012997,2]
[326951962,1715640660254,-500.0,0.00012997,2]
[326951963,1715640660263,-500.0,0.00012997,2]
[326951964,1715640660272,-500.0,0.00012997,2]
[326951965,1715640660282,-2204.47,0.00012997,2]
[326951966,1715640660291,-2204.47,0.00012997,2]
[326951967,1715640660301,-500.0,0.00012997,2]
[326951968,1715640660310,-500.0,0.00012997,2]
[326951969,1715640660320,-500.0,0.00012997,2]
[326951970,1715640660329,-500.0,0.00012997,2]
[326951971,1715640660339,-500.0,0.00012997,2]
[326951972,1715640660349,-654.56,0.00012997,2]
[326951973,1715640660358,-500.0,0.00012997,2]
[326951974,1715640660367,-500.0,0.00012997,2]
[326951975,1715640660377,-500.0,0.00012997,2]
[326951976,1715640660386,-500.0,0.00012997,2]
[326951977,1715640660396,-903.38,0.00012997,2]
[326951978,1715640660405,-903.38,0.00012997,2]
[326951979,1715640660414,-500.0,0.00012997,2]
[326951980,1715640660423,-500.0,0.00012997,2]
[326951981,1715640660432,-500.0,0.00012997,2]
[326951982,1715640660441,-500.0,0.00012997,2]
[326951983,1715640660450,-500.0,0.00012997,2]
[326951984,1715640660459,-500.0,0.00012997,2]
[326951985,1715640660468,-570.93,0.00012997,2]
[326951986,1715640660478,-500.0,0.00012997,2]
[326951987,1715640660487,-500.0,0.00012997,2]
[326951988,1715640660498,-380.3,0.00012997,2]
[326951989,1715640660507,-500.0,0.00012997,2]
[326951990,1715640660516,-320.88560316,0.00012998,2]
[326951991,1715640660525,-155.09689004,0.00012998,2]
[326951992,1715640660534,-564.0,0.00012998,2]
[326951993,1715640660543,-155.0,0.00012998,2]
[326951994,1715640660552,-1678.54469435,0.00012998,2]
[326951995,1715640660560,-167.58743393,0.00012998,2]
[326951996,1715640660569,-616.77,0.00012998,2]
[326951997,1715640660578,-235.96,0.00012998,2]
[326951998,1715640660587,-500.0,0.00012998,2]
[326951999,1715640660596,-150.84,0.00012998,2]
[326952000,1715640660605,-475.97,0.00012998,2]
[326952001,1715640660614,-168.31,0.00012998,2]
[326952002,1715640660625,-296.74,0.00012998,2]
[326952003,1715640660634,-500.0,0.00012998,2]
[326952004,1715640660643,-500.0,0.00012998,2]
[326952005,1715640660652,-638.3,0.00012998,2]
[326952006,1715640660663,-157.06,0.00012998,2]
[326952007,1715640660672,-642.35,0.00012998,2]
[326952008,1715640660681,-208.2,0.00012998,2]
[326952009,1715640660691,-358.99,0.00012998,2]
[326952010,1715640660702,-208.11,0.00012998,2]
[326952011,1715640660711,-500.0,0.00012998,2]
[326952012,1715640660721,-530.15417509,0.00012998,2]
[326952013,1715640660730,-500.0,0.00012998,2]
[326952014,1715640660739,-380.7,0.00012998,2]
[326952015,1715640660750,-500.0,0.00012998,2]
[326952016,1715640660759,-500.0,0.00012998,2]
[326952017,1715640660768,-229.18294791,0.00012998,2]
[326952018,1715640660778,-500.0,0.00012998,2]
[326952019,1715640660787,-500.0,0.00012998,2]
[326952020,1715640660796,-500.0,0.00012998,2]
[326952021,1715640660805,-500.0,0.00012998,2]
[326952022,1715640660815,-500.0,0.00012998,2]
[326952023,1715640660824,-500.0,0.00012998,2]
[326952024,1715640660834,-500.0,0.00012998,2]
[326952025,1715640660843,-500.0,0.00012998,2]
[326952026,1715640660853,-412.77,0.00012998,2]
[326952027,1715640660862,-500.0,0.00012998,2]
[326952028,1715640660872,-500.0,0.00012998,2]
[326952029,1715640660882,-500.0,0.00012998,2]
[326952030,1715640660891,-500.0,0.00012998,2]
[326952031,1715640660900,-500.0,0.00012998,2]
[326952032,1715640660910,-500.0,0.00012998,2]
[326952033,1715640660918,-152.52,0.00012998,2]
[326952034,1715640660928,-165.1,0.00012998,2]
[326952035,1715640660938,-500.0,0.00012998,2]
[326952036,1715640661105,-500.0,0.00012998,2]
[326952037,1715640661115,-500.0,0.00012998,2]
[326952038,1715640661125,-500.0,0.00012998,2]
[326952039,1715640661135,-609.84694839,0.00012998,2]
[326952040,1715640661145,-500.0,0.00012998,2]
[326952041,1715640661154,-503.968515,0.00012998,2]
[326952042,1715640661164,-500.0,0.00012998,2]
[326952043,1715640661173,-500.0,0.00012998,2]
[326952044,1715640661182,-500.0,0.00012998,2]
[326952045,1715640661192,-500.0,0.00012998,2]
[326952046,1715640661201,-500.0,0.00012998,2]
[326952047,1715640661211,-500.0,0.00012998,2]
[326952048,1715640661220,-500.0,0.00012998,2]
[326952049,1715640661229,-509.22859319,0.00012998,2]
[326952050,1715640661238,-500.0,0.00012998,2]
[326952051,1715640661248,-500.0,0.00012998,2]
[326952052,1715640661257,-500.0,0.00012998,2]
[326952053,1715640661267,-500.0,0.00012998,2]
[326952054,1715640661276,-500.0,0.00012998,2]
[326952055,1715640661285,-500.0,0.00012998,2]
[326952056,1715640661294,-500.0,0.00012998,2]
[326952057,1715640661304,-505.18,0.00012998,2]
[326952058,1715640661314,-500.0,0.00012998,2]
[326952059,1715640661324,-500.0,0.00012998,2]
[326952060,1715640661333,-500.0,0.00012998,2]
[326952061,1715640661342,-500.0,0.00012998,2]
[326952062,1715640661352,-500.0,0.00012998,2]
[326952063,1715640661361,-500.0,0.00012998,2]
[326952064,1715640661371,-500.0,0.00012998,2]
[326952065,1715640661380,-500.0,0.00012998,2]
[326952066,1715640661389,-500.0,0.00012998,2]
[326952067,1715640661399,-500.0,0.00012998,2]
[326952068,1715640661408,-500.0,0.00012998,2]
[326952069,1715640661416,-455.99,0.00012998,2]
[326952070,1715640661426,-500.0,0.00012998,2]
[326952071,1715640661434,-500.0,0.00012998,2]
[326952072,1715640661443,-500.0,0.00012998,2]
[326952073,1715640661452,-500.0,0.00012998,2]
[326952074,1715640661462,-581.83430579,0.00012998,2]
[326952075,1715640661471,-500.0,0.00012998,2]
[326952076,1715640661480,-591.3,0.00012998,2]
[326952077,1715640661489,-500.0,0.00012998,2]
[326952078,1715640661499,-500.0,0.00012998,2]
[326952079,1715640661508,-500.0,0.00012998,2]
[326952080,1715640661517,-500.0,0.00012998,2]
[326952081,1715640661527,-500.0,0.00012998,2]
[326952082,1715640661536,-500.0,0.00012998,2]
[326952083,1715640661545,-507.44175239,0.00012998,2]
[326952084,1715640661554,-500.0,0.00012998,2]
[326952085,1715640661564,-581.84,0.00012998,2]
[326952086,1715640661573,-345.05514049,0.00012998,2]
[326952087,1715640661583,-500.0,0.00012998,2]
[326952088,1715640661591,-500.0,0.00012998,2]
[326952089,1715640661600,-504.25,0.00012998,2]
[326952090,1715640661610,-524.20269335,0.00012998,2]
[326952091,1715640661620,-500.0,0.00012998,2]
[326952092,1715640661633,-500.0,0.00012998,2]
[326952093,1715640661642,-506.94995003,0.00012998,2]
[326952094,1715640661651,-500.0,0.00012998,2]
[326952095,1715640661661,-382.72,0.00012998,2]
[326952096,1715640661670,-500.0,0.00012998,2]
[326952097,1715640661680,-500.0,0.00012998,2]
[326952098,1715640661689,-500.0,0.00012998,2]
[326952099,1715640661698,-607.71,0.00012998,2]
[326952100,1715640661709,-500.0,0.00012998,2]
[326952101,1715640661719,-500.0,0.00012998,2]
[326952102,1715640661728,-500.0,0.00012998,2]
[326952103,1715640661737,-160.62854855,0.00012998,2]
[326952104,1715640661749,-500.0,0.00012998,2]
[326952105,1715640661758,-500.0,0.00012998,2]
[326952106,1715640661767,-632.63,0.00012998,2]
[326952107,1715640661776,-500.0,0.00012998,2]
[326952108,1715640661785,-500.0,0.00012998,2]
[326952109,1715640661795,-500.0,0.00012998,2]
[326952110,1715640661804,-500.0,0.00012998,2]
[326952111,1715640661814,-500.0,0.00012998,2]
[326952112,1715640661823,-500.0,0.00012998,2]
[326952113,1715640661832,-535.50057541,0.00012998,2]
[326952114,1715640661841,-157.0,0.00012998,2]
[326952115,1715640661850,-500.0,0.00012998,2]
[326952116,1715640661859,-500.0,0.00012998,2]
[326952117,1715640661867,-500.0,0.00012998,2]
[326952118,1715640661876,-533.57,0.00012998,2]
[326952119,1715640661885,-500.0,0.00012998,2]
[326952120,1715640661894,-500.0,0.00012998,2]
[326952121,1715640661904,-500.0,0.00012998,2]
[326952122,1715640661914,-209.6322372,0.00012998,2]
[326952123,1715640661923,-500.0,0.00012998,2]
[326952124,1715640661933,-500.0,0.00012998,2]
[326952125,1715640661942,-500.0,0.00012998,2]
[326952126,1715640661952,-500.0,0.00012998,2]
[326952127,1715640661962,-500.0,0.00012998,2]
[326952128,1715640661971,-502.31301228,0.00012998,2]
[326952129,1715640661980,-500.0,0.00012998,2]
[326952130,1715640661989,-500.0,0.00012998,2]
[326952131,1715640661998,-500.0,0.00012998,2]
[326952132,1715640662007,-500.0,0.00012998,2]
[326952133,1715640662016,-500.0,0.00012998,2]
[326952134,1715640662025,-500.0,0.00012998,2]
[326952135,1715640662035,-500.0,0.00012998,2]
[326952136,1715640662043,-500.0,0.00012998,2]
[326952137,1715640662052,-500.0,0.00012998,2]